Cogmind - Beta 17 @@@ ROGUE MODE // 2026.08.03 @ 19:59:43 Player: 4R-ZE3 Result: Destroyed by Executioner with Helical Railgun Performance ------------- Evolutions (8) 4000 Regions Visited (13) 2600 Robots Destroyed (262) 1310 Value Destroyed (18237) 18237 Prototype IDs (81) 1620 Alien Tech Used (3) 600 Bonus (12310) 12310 TOTAL SCORE: 40677 Bonus ------- High Alert Combat Kills 11670 Entered DSFs 500 Registered with UFD 300 Met Optimus in HQ 500 Met Optimus at Protoforge 1000 Friendly Fire -1660 Cogmind --------- Core Integrity 0/1450 Matter 280/300 Energy 280/280 System Corruption 8% Temperature Cool (0) Movement Treading (140) Location -2/Protoforge Parts ------- > --- POWER (2) -------- Light Quantum Reactor Light Quantum Reactor > --- PROPULSION (8) --- Overtuned Medium Treads Overtuned Medium Treads Overtuned Medium Treads Overtuned Medium Treads Overtuned Huge Scrapsphere Overtuned Huge Scrapsphere > --- UTILITY (9) ------ 0bPrime Scrap Suit Experimental Optical Array Advanced Target Analyzer Experimental Core Analyzer Experimental Armor Integrity Analyzer Advanced Kinecellerator Advanced Phase Shifter Centrium Light Armor Plating > --- WEAPON (4) ------- Helical Railgun Helical Railgun Helical Railgun Helical Railgun > --- INVENTORY (5) ---- Light Quantum Reactor Overtuned Medium Treads Overtuned Medium Treads Helical Railgun Concept XC Strikerail Peak State ------------ > --- POWER ------------ Improved Quantum Reactor Matter Drive > --- PROPULSION ------- Experimental Biometal Leg Experimental Biometal Leg Experimental VSS Leg Experimental VSS Leg Experimental VSS Leg Experimental VSS Leg Experimental VSS Leg Experimental VSS Leg > --- UTILITY ---------- Experimental Heat Sink Plexus Tether Experimental Optical Array Advanced Target Analyzer Experimental Core Analyzer Experimental Core Analyzer Experimental Armor Integrity Analyzer Experimental Kinecellerator Graphene Brace > --- WEAPON ----------- Concept XC Strikerail Concept XC Strikerail Concept XC Strikerail Concept XC Strikerail > --- INVENTORY -------- Enhanced Biometal Leg Heavy Shield Leg Graphene Brace Concept XC Strikerail [Rating: 238] Favorites ----------- Power Improved Quantum Reactor Engine Light Ion Engine Power Core Neutrino Core Reactor Improved Quantum Reactor Propulsion Experimental VSS Leg Treads Light Treads Leg Experimental VSS Leg Wheel Overtuned Huge Scrapsphere Hover Unit Improved Linear Gravjet Flight Unit Impulse Thruster Array Utility Graphene Brace Device Graphene Brace Storage High-capacity Storage Unit Processor Advanced Signal Interpreter Hackware Hacking Suite Protection Centrium Medium Armor Plating Artifact Phase Redirector Weapon Overtuned Coil Gun Energy Gun Medium Laser Energy Cannon Core Cannon Ballistic Gun Overtuned Coil Gun Launcher Heavy Missile Launcher Special Weapon Mining Laser Slashing Weapon Makeshift Axe Build | -11 -10 -10 -9 -6 -5 -4 -4 -4 -3 -3 -2 -2 -2 ------- Run | Yrd Mat Sub Scr Fac Fac Fac Upp Upp Res DSF Res Qua Frg Slots Evolved 16 | . . . . 8 2 2 . . 2 . 2 . . Power 1 | . . . . . . 1 . . . . . . . Propulsion 6 | . . . . 2 . . . . 2 . 2 . . Utility 7 | . . . . 4 2 1 . . . . . . . Weapon 2 | . . . . 2 . . . . . . . . . Parts Attached 180 | 6 1 5 7 17 26 8 5 2 . 8 1 4 90 Power 21 | 1 . . 1 2 2 . . . . 2 . 1 12 Engine 4 | 1 . . 1 2 . . . . . . . . . Core 2 | . . . . . 2 . . . . . . . . Reactor 15 | . . . . . . . . . . 2 . 1 12 Propulsion 51 | 2 . 2 1 3 4 2 . . . 3 1 . 33 Treads 25 | 2 . . 1 3 1 . . . . . . . 18 Leg 14 | . . . . . 2 . . . . . . . 12 Wheel 4 | . . 2 . . . . . . . . . . 2 Hover 1 | . . . . . . 1 . . . . . . . Flight 7 | . . . . . 1 1 . . . 3 1 . 1 Utility 63 | 1 1 2 1 10 12 5 3 2 . 3 . 2 21 Device 33 | . . 2 . 6 8 3 1 2 . 2 . 1 8 Storage 4 | 1 1 . 1 . 1 . . . . . . . . Processor 12 | . . . . 2 . 1 1 . . . . . 8 Hackware 3 | . . . . 1 . . 1 . . . . . 1 Protection 10 | . . . . 1 3 1 . . . 1 . . 4 Artifact 1 | . . . . . . . . . . . . 1 . Weapon 45 | 2 . 1 4 2 8 1 2 . . . . 1 24 Energy Gun 3 | . . . 2 . . . 1 . . . . . . Energy Cannon 1 | . . . . . . . . . . . . 1 . Ballistic Gun 37 | 2 . . 2 2 7 . . . . . . . 24 Ballistic Cannon . | . . . . . . . . . . . . . . Launcher 1 | . . . . . 1 . . . . . . . . Special Weapon 1 | . . 1 . . . . . . . . . . . Impact Weapon . | . . . . . . . . . . . . . . Slashing Weapon 2 | . . . . . . 1 1 . . . . . . Piercing Weapon . | . . . . . . . . . . . . . . Special Melee Weapon . | . . . . . . . . . . . . . . Unidentified Prototypes 19 | . . . . . . . . . . 1 . 3 15 Parts Lost 76 | . . 4 . . 24 2 3 . . 1 . . 42 Power 10 | . . 1 . . 2 . . . . . . . 7 Propulsion 27 | . . 1 . . 7 . . . . . . . 19 Utility 18 | . . . . . 6 1 3 . . 1 . . 7 Weapon 21 | . . 2 . . 9 1 . . . . . . 9 Highest Loss Streak 11 | . . 4 . . 11 2 2 . . 1 . . 6 To Critical Strikes . | . . . . . . . . . . . . . . Average Backups 10 | 1 4 7 13 17 18 4 4 4 4 2 4 5 4 Power . | . 1 1 . 1 1 . . . . . . 1 . Propulsion 1 | 1 2 2 2 2 . . 1 1 1 1 2 2 . Utility 4 | . . 1 6 8 9 4 3 3 3 1 1 1 . Weapon 3 | . 1 3 3 4 6 . . . . . . . 2 Tool/Special . | . . . . . . . . . . . . . . Unused Backups 27 | . . 1 1 4 10 . . . . 1 1 . 9 Power 5 | . . . . 1 3 . . . . . 1 . . Propulsion 6 | . . . . . . . . . . 1 . . 5 Utility 10 | . . 1 . 3 4 . . . . . . . 2 Weapon 6 | . . . 1 . 3 . . . . . . . 2 Tool/Special . | . . . . . . . . . . . . . . Average Slot Usage (%) 86 | . 85 83 90 91 90 30 41 53 52 54 59 68 88 Engine 4 | . 14 13 13 6 1 . . . . . . . . Reactor 2 | . . . . . . . . . . . 7 8 7 Treads 17 | . 28 26 26 25 20 . . . . . . . 9 Leg 5 | . . . . . . . . . . . . . 17 Flight 1 | . . . . . . 6 10 10 9 11 17 17 1 Device 15 | . . 1 14 18 25 11 6 11 14 13 13 16 13 Storage 5 | . 14 14 14 6 4 . . . . . . . . Processor 7 | . . . . 4 4 4 7 10 9 9 8 8 17 Protection 1 | . . . . . . 2 5 5 4 7 4 4 1 Energy Gun 2 | . . . 14 . . . 3 . . . . . . Ballistic Gun 16 | . 28 22 5 25 21 . . . . . . . 15 Peak Build Rating 238 | 6 7 9 26 68 85 49 59 67 62 118 122 176 238 Average Rating 97 | 5 6 6 14 62 78 33 50 59 62 92 121 155 196 On Entrance 52 | . 6 6 5 26 65 8 49 57 62 62 97 122 176 Avg Prop Armor Cover (%) 10 | . . . . . . 13 13 15 15 1 . . 9 Naked Turns 5 | . . . . . 5 . . . . . . . . Heaviest Build 130 | 13 18 20 54 87 130 9 12 9 9 38 39 65 81 Greatest Support 220 | 40 40 40 43 89 96 13 13 13 13 48 72 72 220 Greatest Overweight (x) 8 | . . . 1 1 8 1 . . . . . . 3 Average Overweight (x) . | . . . . . . . . . . . . . . Largest Inventory Capacity 25 | 8 10 10 20 20 25 5 5 5 5 5 5 5 5 Average Capacity 13 | 7 9 10 17 20 21 5 5 5 5 5 5 5 5 Most Carried 24 | 3 6 10 20 20 24 5 5 5 5 5 5 5 5 Average Carried 11 | 2 4 8 14 18 19 4 4 5 5 3 4 4 4 Final Capacity 20 | 8 10 10 20 20 5 5 5 5 5 5 5 5 5 Final Carried 20 | 3 6 9 20 20 5 5 5 5 5 5 5 5 5 Scrap Suit Usage (%) 9 | . . . . 3 . . . . . . . . 29 Parts Cannibalized 32 | . . . . 1 . . . . . . . . 31 Class Distribution -------------------- 33% | Scrapper 28% | Mutant 22% | Scavenger-Gunner 6% | Scavenger-Scrapper 3% | Derelict-Mutant Dominant Class ---------------- Mutant | -10/Materials Mutant | -10/Subcaves Mutant | -9/Scraptown Scrapper | -6/Factory Scrapper | -5/Factory Mutant | -4/Factory Mutant | -4/Upper Caves Mutant | -4/Upper Caves Mutant | -3/Research Derelict-Mutant | -3/DSF Derelict-Mutant | -2/Research Derelict-Mutant | -2/Quarantine Scavenger-Gunner | -2/Protoforge Resources | -11 -10 -10 -9 -6 -5 -4 -4 -4 -3 -3 -2 -2 -2 ----------- Run | Yrd Mat Sub Scr Fac Fac Fac Upp Upp Res DSF Res Qua Frg Matter Collected 10764 | 220 104 56 110 661 2077 . 286 10 . . 73 . 7167 Remotely 736 | . . . . . 736 . . . . . . . . Salvage Created 17196 | . 187 . . 697 2406 . . . . . . . 13906 Parts 871 | . 6 . . 45 134 . . . . . . . 686 Haulers Intercepted . | . . . . . . . . . . . . . . Recyclers Shooed 5 | . . . . . 5 . . . . . . . . Parts Field Recycled . | . . . . . . . . . . . . . . Retrieved Matter . | . . . . . . . . . . . . . . Parts Self-Destructed 8 | . . 8 . . . . . . . . . . . Prevented . | . . . . . . . . . . . . . . Parts Restored . | . . . . . . . . . . . . . . Kills | -11 -10 -10 -9 -6 -5 -4 -4 -4 -3 -3 -2 -2 -2 ------- Run | Yrd Mat Sub Scr Fac Fac Fac Upp Upp Res DSF Res Qua Frg Combat Hostiles Destroyed 238 | . 4 . . 13 41 . . . . . . . 180 Melee 1 | . . . . . 1 . . . . . . . . Guns 230 | . 4 . . 13 33 . . . . . . . 180 AOE 7 | . . . . . 7 . . . . . . . . Classes Destroyed 27 | . 1 . . 7 5 . . . . . . . 14 Worker 6 | . . . . 1 5 . . . . . . . . Builder 4 | . . . . 1 3 . . . . . . . . Tunneler 2 | . . . . 1 1 . . . . . . . . Recycler 1 | . . . . . 1 . . . . . . . . Mechanic 2 | . . . . . 1 . . . . . . . 1 Operator 1 | . . . . . . . . . . . . . 1 Drone 14 | . . . . . . . . . . . . . 14 Watcher 2 | . . . . . . . . . . . . . 2 Swarmer 20 | . . . . 3 4 . . . . . . . 13 Saboteur 3 | . . . . . . . . . . . . . 3 Grunt 53 | . 4 . . 4 14 . . . . . . . 31 Brawler 14 | . . . . . 1 . . . . . . . 13 Duelist 8 | . . . . . . . . . . . . . 8 Protector 3 | . . . . . . . . . . . . . 3 Sentry 2 | . . . . 1 1 . . . . . . . . Demolisher 2 | . . . . . . . . . . . . . 2 Specialist 5 | . . . . . 2 . . . . . . . 3 Hunter 33 | . . . . 1 11 . . . . . . . 21 Programmer 23 | . . . . 4 6 . . . . . . . 13 Heavy 2 | . . . . . 2 . . . . . . . . Hotshot 10 | . . . . . . . . . . . . . 10 Decapitator 5 | . . . . . . . . . . . . . 5 Immortal 4 | . . . . . . . . . . . . . 4 Striker 19 | . . . . . . . . . . . . . 19 Executioner 18 | . . . . . . . . . . . . . 18 Scrapper 1 | . . . . . . . . . . . . . 1 Elite 3 | . . . . . . . . . . . . . 3 Scrapoid 1 | . . . . . . . . . . . . . 1 Scraphulk 1 | . . . . . . . . . . . . . 1 Best Kill Streak 11 | . 2 . . 3 7 . . . . . . . 11 Combat Bots Only 11 | . 2 . . 3 6 . . . . . . . 11 Max Kills in Single Turn 3 | . 1 . . 1 3 . . . . . . . 3 Gunslinging 1 | . . . . . 1 . . . . . . . 1 Exploded 2 | . . . . . 2 . . . . . . . . Melee 1 | . . . . . 1 . . . . . . . . Uniques/NPCs Destroyed . | . . . . . . . . . . . . . . Combat | -11 -10 -10 -9 -6 -5 -4 -4 -4 -3 -3 -2 -2 -2 -------- Run | Yrd Mat Sub Scr Fac Fac Fac Upp Upp Res DSF Res Qua Frg Hostile Shots Fired 1114 | . 17 26 . 30 420 1 26 2 . 16 . 6 570 Missed 372 | . 4 10 . 8 124 . 12 2 . 7 . 3 202 Hits 742 | . 13 16 . 22 296 1 14 . . 9 . 3 368 Melee 9 | . . . . . . . . . . 5 . . 4 Projectile 733 | . 13 16 . 22 296 1 14 . . 4 . 3 364 AOE 8 | . . 1 . . 1 . . . . 2 . . 4 Critical Strikes 44 | . . 1 . 2 10 . 2 . . 4 . . 25 Actively Blocked 36 | . . . . . 9 . . . . 2 . . 25 Part Disruptions 1 | . . . . . . . . . . . . . 1 Damage Taken 17015 | . 167 408 . 352 4708 68 275 . . 426 . 72 10539 Core 2618 | . 20 123 . 29 874 24 73 . . . . . 1475 Absorbed by Shields 864 | . . . . 30 834 . . . . . . . . Redirected to Shielding 228 | . . . . . . . 51 . . 29 . . 148 Ignored by Resistances 555 | . . . . . 555 . . . . . . . . Regen/Repaired (Parts) 300 | . . . . 10 . . . . . . . . 290 Core Remaining (%) 73 | 100 . . 42 96 12 . . 91 . 100 . . . Volleys Fired 517 | . 16 10 . 40 135 . . . . . . . 316 Largest 4 | . 2 2 . 4 4 . . . . . . . 4 Hottest 152 | . 40 100 . 126 133 . . . . . . . 152 Shots Fired 1774 | . 32 14 . 126 402 . . . . . . . 1200 Gun 1755 | . 32 8 . 126 389 . . . . . . . 1200 Cannon . | . . . . . . . . . . . . . . Launcher 13 | . . . . . 13 . . . . . . . . Special 6 | . . 6 . . . . . . . . . . . Kinetic 1755 | . 32 8 . 126 389 . . . . . . . 1200 Thermal 6 | . . 6 . . . . . . . . . . . Explosive 13 | . . . . . 13 . . . . . . . . Electromagnetic . | . . . . . . . . . . . . . . Robot Hit Streak 67 | . 9 10 . 9 13 . . . . . . . 67 Robot Miss Streak 7 | . 3 1 . 6 4 . . . . . . . 7 Penetration Max 2 | . . . . . 2 . . . . . . . 2 Secondary Targets 67 | . . . . 3 7 . . . . . . . 57 Max Gunslinging Chain 2 | . . . . 1 1 . . . . . . . 2 Shots Hit Robots 1053 | . 21 7 . 56 238 . . . . . . . 731 Core Hits 505 | . 9 . . 23 110 . . . . . . . 363 Critical Kills 65 | . . . . 1 7 . . . . . . . 57 Critical Parts Destroyed 88 | . . . . 1 11 . . . . . . . 76 Critical Strikes 157 | . . . . 2 19 . . . . . . . 136 Destroy 157 | . . . . 2 19 . . . . . . . 136 Melee Attacks 10 | . . . . . . 1 . . . . 1 6 2 Impact . | . . . . . . . . . . . . . . Slashing 10 | . . . . . . 1 . . . . 1 6 2 Piercing . | . . . . . . . . . . . . . . Sneak Attacks . | . . . . . . . . . . . . . . Combat Hostiles . | . . . . . . . . . . . . . . Follow-up Attacks . | . . . . . . . . . . . . . . Damage Inflicted 42954 | . 225 68 . 1583 8391 . . . . . . . 32687 Guns 40703 | . 225 68 . 1583 6192 . . . . . . . 32635 Cannons . | . . . . . . . . . . . . . . Explosions 2175 | . . . . . 2175 . . . . . . . . Melee 52 | . . . . . . . . . . . . . 52 Ramming 24 | . . . . . 24 . . . . . . . . Kinetic 40703 | . 225 68 . 1583 6192 . . . . . . . 32635 Thermal 603 | . . . . . 603 . . . . . . . . Explosive 1546 | . . . . . 1546 . . . . . . . . Electromagnetic 26 | . . . . . 26 . . . . . . . . Impact . | . . . . . . . . . . . . . . Slashing 52 | . . . . . . . . . . . . . 52 Piercing . | . . . . . . . . . . . . . . Highest Corruption 8 | . . . . 1 5 . . . . . . 1 8 Average Corruption 5 | . . . . 1 2 . . . . . . 1 6 Corruption Purged . | . . . . . . . . . . . . . . Corruption Blocked . | . . . . . . . . . . . . . . Effects 134 | . . . . . 29 . . . . . . . 105 Message Errors 30 | . . . . . 8 . . . . . . . 22 Matter Fused 24 | . . . . . 4 . . . . . . . 20 Heat Flow Errors 13 | . . . . . 2 . . . . . . . 11 Energy Discharges 19 | . . . . . 7 . . . . . . . 12 Parts Rejected 5 | . . . . . . . . . . . . . 5 Data Loss (minor) 17 | . . . . . 4 . . . . . . . 13 Data Loss (major) 8 | . . . . . 1 . . . . . . . 7 Alerts 1 | . . . . . . . . . . . . . 1 Weapon Failures 17 | . . . . . 3 . . . . . . . 14 Overload Shots . | . . . . . . . . . . . . . . Overflow Damage 288 | . . . . . 288 . . . . . . . . Projectiles . | . . . . . . . . . . . . . . Explosions 288 | . . . . . 288 . . . . . . . . Melee . | . . . . . . . . . . . . . . Knockbacks . | . . . . . . . . . . . . . . Impact . | . . . . . . . . . . . . . . Kinetic . | . . . . . . . . . . . . . . Secondary . | . . . . . . . . . . . . . . Self-Inflicted Damage 104 | . . . . . 104 . . . . . . . . Shots 3 | . . . . . 3 . . . . . . . . Rammed 3 | . . . . . 3 . . . . . . . . Targets Rammed 4 | . . . . . 4 . . . . . . . . Kicked . | . . . . . . . . . . . . . . Crushed 1 | . . . . . 1 . . . . . . . . Highest Temperature 303 | . 18 266 . 303 168 . . . . . . . 220 Average Temperature 84 | . 8 143 . 121 60 . . . . . . . 94 Received Heat Transfer 1292 | . 96 383 . 63 375 . 66 . . . . . 309 Effects 1 | . . 1 . . . . . . . . . . . Energy Bleed 1 | . . 1 . . . . . . . . . . . Siege Activations . | . . . . . . . . . . . . . . Martial Activations . | . . . . . . . . . . . . . . Shielding Activations . | . . . . . . . . . . . . . . Robots Disrupted . | . . . . . . . . . . . . . . Combat Hostiles . | . . . . . . . . . . . . . . Robots Corrupted . | . . . . . . . . . . . . . . Combat Hostiles . | . . . . . . . . . . . . . . Parts Fried . | . . . . . . . . . . . . . . Impact Corruptions . | . . . . . . . . . . . . . . Robots Melted . | . . . . . . . . . . . . . . Combat Hostiles . | . . . . . . . . . . . . . . Parts Melted 7 | . . . . . 2 . . . . . . . 5 Heat Transferred 450 | . . . . . 450 . . . . . . . . Parts Sabotaged . | . . . . . . . . . . . . . . Parts Stolen . | . . . . . . . . . . . . . . Parts Stripped . | . . . . . . . . . . . . . . Power Chain Reactions . | . . . . . . . . . . . . . . Alert | -11 -10 -10 -9 -6 -5 -4 -4 -4 -3 -3 -2 -2 -2 ------- Run | Yrd Mat Sub Scr Fac Fac Fac Upp Upp Res DSF Res Qua Frg Maximum Alert Level 5 | . . . . 1 4 3 . . . . . . 5 Low Security (%) 39 | 100 100 . . 88 27 . . . 100 100 100 100 13 Level 1 5 | . . . . 11 6 . . . . . . . 3 Level 2 6 | . . . . . 12 55 . . . . . . 4 Level 3 16 | . . . . . 39 44 . . . . . . 9 Level 4 10 | . . . . . 14 . . . . . . . 16 Level 5 21 | . . . . . . . . . . . . . 52 High Security . | . . . . . . . . . . . . . . Max Security . | . . . . . . . . . . . . . . Peak Influence 3562 | . 90 . . 224 1490 724 . . 172 129 66 42 3562 Initial 709 | . . . . . 99 709 . . 172 129 66 17 12 Average 922 | . 32 . . 80 670 692 . . 172 128 53 25 1688 Influence Increases 7681 | . 146 . . 569 2092 35 60 . . . 25 75 4679 Destroy 0b10 Robot/C 4420 | . 80 . . 260 820 . . . . . . . 3260 Destroy 0b10 Robot/NC 175 | . . . . 15 55 . . . . . . . 105 Destroy Leader 784 | . 30 . . 80 190 . . . . . . . 484 Successful Hack 122 | . 6 . . . . 5 . . . . 22 21 68 Disable Machine 645 | . . . . 150 360 15 . . . . . 45 75 Destroy Structure 980 | . . . . 64 622 . . . . . 3 9 282 Partial Spotted 45 | . . . . . 15 . . . . . . . 30 Lose Combat Pursuer 510 | . 30 . . . 30 15 60 . . . . . 375 Influence Decreases 4120 | . 76 70 . 365 848 819 407 61 84 53 113 84 1140 Entered New Map 1390 | . . 34 . . 105 739 247 61 84 43 53 14 10 Time Decay 2010 | . 76 36 . 365 503 60 130 . . . 60 70 710 Lost Part 720 | . . . . . 240 20 30 . . 10 . . 420 Squads Dispatched 36 | . 2 . . 7 15 1 . . . 1 . 1 9 Investigation 11 | . 1 . . 3 2 . . . . . . . 5 Extermination 8 | . . . . 3 3 . . . . . . 1 1 Reinforcement 15 | . 1 . . . 9 1 . . . 1 . . 3 Assault 1 | . . . . . 1 . . . . . . . . Garrison 1 | . . . . 1 . . . . . . . . . Intercept . | . . . . . . . . . . . . . . Searches Triggered . | . . . . . . . . . . . . . . Construction Impeded 3 | . . . . . 3 . . . . . . . . Haulers Reinforced . | . . . . . . . . . . . . . . Active Scanning Responses . | . . . . . . . . . . . . . . Cargo Convoy Interrupts 1 | . . . . . 1 . . . . . . . . Stealth | -11 -10 -10 -9 -6 -5 -4 -4 -4 -3 -3 -2 -2 -2 --------- Run | Yrd Mat Sub Scr Fac Fac Fac Upp Upp Res DSF Res Qua Frg Distress Signals 15 | . . . . 1 4 . . . . . . 1 9 Communications Jammed . | . . . . . . . . . . . . . . Distress Signals . | . . . . . . . . . . . . . . Times Spotted 409 | . 8 12 . 15 59 . 4 2 . 3 1 2 303 Peak Tracking Total 17 | . 3 9 . 3 7 1 3 4 . 3 1 3 17 Tactical Retreats 19 | . 1 . . . 2 1 2 . . . . . 13 Traps | -11 -10 -10 -9 -6 -5 -4 -4 -4 -3 -3 -2 -2 -2 ------- Run | Yrd Mat Sub Scr Fac Fac Fac Upp Upp Res DSF Res Qua Frg Traps Triggered 4 | . 1 . . 1 . 1 . . . . . . 1 Indirectly . | . . . . . . . . . . . . . . Trap Hack Attempts . | . . . . . . . . . . . . . . Triggered . | . . . . . . . . . . . . . . Disarmed . | . . . . . . . . . . . . . . Reprogrammed . | . . . . . . . . . . . . . . Reused . | . . . . . . . . . . . . . . Traps Extracted . | . . . . . . . . . . . . . . Installed . | . . . . . . . . . . . . . . Triggered . | . . . . . . . . . . . . . . Machines | -11 -10 -10 -9 -6 -5 -4 -4 -4 -3 -3 -2 -2 -2 ---------- Run | Yrd Mat Sub Scr Fac Fac Fac Upp Upp Res DSF Res Qua Frg Machines Disabled 43 | . . . . 10 24 1 . . . . . 3 5 Max in Single Turn 6 | . . . . 3 6 1 . . . . . 1 1 Machines Repaired . | . . . . . . . . . . . . . . Machines Dismantled . | . . . . . . . . . . . . . . Machines Sabotaged . | . . . . . . . . . . . . . . Overloaded Fab Kills . | . . . . . . . . . . . . . . Hacking | -11 -10 -10 -9 -6 -5 -4 -4 -4 -3 -3 -2 -2 -2 --------- Run | Yrd Mat Sub Scr Fac Fac Fac Upp Upp Res DSF Res Qua Frg Machines Accessed 26 | . 1 . 2 4 5 1 . . 1 . 2 3 7 Terminals 14 | . 1 . . 2 2 1 . . 1 . 1 2 4 Fabricators . | . . . . . . . . . . . . . . Repair Stations 1 | . . . . . 1 . . . . . . . . Recycling Units 6 | . . . . 1 2 . . . . . . . 3 Scanalyzers 2 | . . . . . . . . . . . 1 1 . Garrison Access 1 | . . . . 1 . . . . . . . . . Total Hacks 56 | . 2 . 11 8 6 3 . . 1 . 5 6 14 Successful 30 | . 1 . 11 1 2 1 . . 1 . 2 3 8 Failed 25 | . . . . 7 4 2 . . . . 3 3 6 Catastrophic 5 | . . . . 3 . 1 . . . . . . 1 Database Lockouts 1 | . 1 . . . . . . . . . . . . Manual 26 | . 2 . . 7 3 1 . . . . 1 2 10 Terminals 28 | . 2 . . 4 3 3 . . 1 . 2 4 9 Fabricators . | . . . . . . . . . . . . . . Repair Stations 1 | . . . . . 1 . . . . . . . . Recycling Units 10 | . . . . 3 2 . . . . . . . 5 Scanalyzers 5 | . . . . . . . . . . . 3 2 . Garrison Access 1 | . . . . 1 . . . . . . . . . Terminal Hacks 17 | . 1 . 11 . . . . . 1 . . 2 2 Record 6 | . . . 4 . . . . . . . . 2 . Robot Analysis 8 | . 1 . 7 . . . . . . . . . . Open DSF 1 | . . . . . . . . . 1 . . . . Zone Layout 2 | . . . . . . . . . . . . . 2 Fabricator Hacks . | . . . . . . . . . . . . . . Repair Station Hacks . | . . . . . . . . . . . . . . Recycling Unit Hacks . | . . . . . . . . . . . . . . Scanalyzer 2 | . . . . . . . . . . . 1 1 . Retrieve Study 2 | . . . . . . . . . . . 1 1 . Garrison Access Hacks . | . . . . . . . . . . . . . . Unauthorized Hacks 11 | . . . . 1 2 1 . . . . 1 . 6 Terminals 5 | . . . . . . 1 . . . . 1 . 3 Botnet 5 | . . . . . . 1 . . . . 1 . 3 Fabricators . | . . . . . . . . . . . . . . Repair Stations . | . . . . . . . . . . . . . . Recycling Units 6 | . . . . 1 2 . . . . . . . 3 Fedlink 6 | . . . . 1 2 . . . . . . . 3 Scanalyzers . | . . . . . . . . . . . . . . Garrison Access . | . . . . . . . . . . . . . . Data Cores Recovered 1 | . . . . . . . . . . . . . 1 Used . | . . . . . . . . . . . . . . Hacking Detections 18 | . 1 . . 4 3 1 . . . . 2 3 4 Full Trace Events 1 | . . . . 1 . . . . . . . . . Feedback Events . | . . . . . . . . . . . . . . Feedback Blocked . | . . . . . . . . . . . . . . Robot Schematics Acquired . | . . . . . . . . . . . . . . Robots Built . | . . . . . . . . . . . . . . Authchips . | . . . . . . . . . . . . . . Time . | . . . . . . . . . . . . . . Total Robot Build Rating . | . . . . . . . . . . . . . . Part Schematics Acquired . | . . . . . . . . . . . . . . Parts Built . | . . . . . . . . . . . . . . Authchips . | . . . . . . . . . . . . . . Time . | . . . . . . . . . . . . . . Total Part Build Rating . | . . . . . . . . . . . . . . Part Studies Acquired 2 | . . . . . . . . . . . 1 1 . Parts Repaired . | . . . . . . . . . . . . . . Time . | . . . . . . . . . . . . . . Parts Recycled . | . . . . . . . . . . . . . . Recycled Matter . | . . . . . . . . . . . . . . Retrieved Matter . | . . . . . . . . . . . . . . Retrieved Components . | . . . . . . . . . . . . . . Parts Scanalyzed . | . . . . . . . . . . . . . . Part Schematics Acquired . | . . . . . . . . . . . . . . Parts Damaged . | . . . . . . . . . . . . . . Bothacking | -11 -10 -10 -9 -6 -5 -4 -4 -4 -3 -3 -2 -2 -2 ------------ Run | Yrd Mat Sub Scr Fac Fac Fac Upp Upp Res DSF Res Qua Frg Used RIF Installer . | . . . . . . . . . . . . . . Robots Hacked . | . . . . . . . . . . . . . . Non-combat . | . . . . . . . . . . . . . . Combat . | . . . . . . . . . . . . . . Robot Hacks Applied . | . . . . . . . . . . . . . . Relay Couplers Released 3 | . . . . 3 . . . . . . . . . Programmers 3 | . . . . 3 . . . . . . . . . Fabnet Peak Effective % . | . . . . . . . . . . . . . . Robots Rewired . | . . . . . . . . . . . . . . Allies Hacked . | . . . . . . . . . . . . . . Hacks Repelled . | . . . . . . . . . . . . . . Allies | -11 -10 -10 -9 -6 -5 -4 -4 -4 -3 -3 -2 -2 -2 -------- Run | Yrd Mat Sub Scr Fac Fac Fac Upp Upp Res DSF Res Qua Frg Total Allies . | . . . . . . . . . . . . . . Largest Group . | . . . . . . . . . . . . . . Highest-Rated Group . | . . . . . . . . . . . . . . Highest-Rated Ally . | . . . . . . . . . . . . . . Initial UFD Resources 62 | . . . . 23 37 54 54 54 58 58 62 62 62 Total Orders . | . . . . . . . . . . . . . . Ally Attacks . | . . . . . . . . . . . . . . Total Damage . | . . . . . . . . . . . . . . Kills . | . . . . . . . . . . . . . . Allies Corrupted . | . . . . . . . . . . . . . . Allies Melted . | . . . . . . . . . . . . . . Intel | -11 -10 -10 -9 -6 -5 -4 -4 -4 -3 -3 -2 -2 -2 ------- Run | Yrd Mat Sub Scr Fac Fac Fac Upp Upp Res DSF Res Qua Frg Active Infowar (turns) 6392 | . . 8 . 1128 1808 69 . 8 5 10 81 151 3124 Optics 3006 | . . 8 . . . . . . . . . . 2998 Sensors 3257 | . . . . 1001 1807 68 . 8 5 10 81 151 126 Terrain 972 | . . . . 127 844 1 . . . . . . . Jamming 1 | . . . . . 1 . . . . . . . . Robot Analysis Total 8 | . 1 . 7 . . . . . . . . . . Derelict Logs Recovered 6 | . . 2 2 . . . 2 . . . . . . Drone Launches . | . . . . . . . . . . . . . . Drone Recoveries . | . . . . . . . . . . . . . . Exploration | -11 -10 -10 -9 -6 -5 -4 -4 -4 -3 -3 -2 -2 -2 ------------- Run | Yrd Mat Sub Scr Fac Fac Fac Upp Upp Res DSF Res Qua Frg Turns Passed 10215 | 66 243 412 1787 1512 2225 134 262 18 5 81 120 151 3199 Spaces Moved 6678 | 36 101 206 857 794 873 182 599 35 13 57 309 354 2262 Core 40 | 2 . . . . 13 25 . . . . . . . Treads 2945 | 34 101 180 788 794 764 . . . . . . . 284 Legs 1309 | . . . . . 34 . . . . . . . 1275 Wheels 301 | . . 26 69 . . . . . . . . . 206 Hover 41 | . . . . . . 41 . . . . . . . Flight 2042 | . . . . . 62 116 599 35 13 57 309 354 497 Fastest Speed 34 | 50 160 90 100 155 45 40 40 40 40 39 36 36 34 Average Speed 113 | 153 160 152 204 155 188 51 40 40 40 40 36 36 80 Slowest Speed 560 | 160 160 160 240 240 560 100 40 40 40 45 36 36 200 Overloaded Moves . | . . . . . . . . . . . . . . Propulsion Burnouts . | . . . . . . . . . . . . . . Robots Hopped 9 | . . . . . . . 2 . . 2 . . 5 Potential Cave-ins 3 | . . . . . . . . . . . . . 3 Cave-ins Triggered . | . . . . . . . . . . . . . . Exploration Rate (%) 30 | 3 19 16 59 16 28 4 87 8 . 79 7 36 40 Regions Visited 13 Branch Regions 6 Pre-discovered Areas 3 | . . 1 . . 1 . 1 . . . . . . Known Exits Taken 7 | . . . . 1 . 1 1 1 1 . 1 1 . Unknown Exits Taken 5 | 1 1 1 1 . 1 . . . . . . . . Scrap Searched 9 | . . . 3 . . . 5 1 . . . . . Spaces Dug 30 | . . . . 8 14 . . . . . 1 3 4 Terrain Destroyed 613 | . . . . 81 357 . . . . . 1 3 171 Melee 5 | . . . . . . . . . . . 1 3 1 Projectile 354 | . . . . 61 123 . . . . . . . 170 AOE 254 | . . . . 20 234 . . . . . . . . Terrain Rammed . | . . . . . . . . . . . . . . Walls Destroyed . | . . . . . . . . . . . . . . Machines Disabled . | . . . . . . . . . . . . . . Actions | -11 -10 -10 -9 -6 -5 -4 -4 -4 -3 -3 -2 -2 -2 --------- Run | Yrd Mat Sub Scr Fac Fac Fac Upp Upp Res DSF Res Qua Frg Total 8240 | 44 154 276 893 1053 1280 217 617 37 12 113 316 369 2859 Wait 574 | . 33 48 2 167 177 11 12 . . 41 . 4 79 Move 6648 | 35 100 205 856 793 872 181 594 34 12 52 308 353 2253 Hop 8 | . . . . . . . 2 . . 2 . . 4 Pick Up 106 | 3 3 3 20 14 24 2 1 . . 3 4 1 28 Fast Attach 110 | 6 1 1 1 1 9 7 5 2 . 5 . 3 69 Attach 60 | . . 1 5 11 18 2 1 . . 3 2 1 16 Detach 12 | . . 1 . 3 3 . . . . 1 . . 4 Swap 77 | . . 6 2 14 25 . . . . . . . 30 Drop 101 | . 1 1 7 10 13 . 2 1 . 6 1 1 58 Fire 517 | . 16 10 . 40 135 . . . . . . . 316 Melee 10 | . . . . . . 1 . . . . 1 6 2 Ram . | . . . . . . . . . . . . . . Kick . | . . . . . . . . . . . . . . Crush 4 | . . . . . 4 . . . . . . . . Escape Stasis 13 | . . . . . . 13 . . . . . . . Rewire . | . . . . . . . . . . . . . . Trap . | . . . . . . . . . . . . . . Miscellaneous . | . . . . . . . . . . . . . . Route ------- -11/Scrapyard -10/Materials (discovered 2 exits: [*Min] / [*Sub]) -10/Subcaves -9/Scraptown -6/Factory (discovered 2 exits: *Fac x2) -5/Factory -4/Factory -4/Upper Caves -4/Upper Caves -3/Research -3/DSF -2/Research -2/Quarantine (discovered 2 exits: [*Sec] / *Frg) -2/Protoforge History --------- Turn | Location | Event 18 | -11/Scrapyard | Discovered new exit (range 15) 67 | -11/Scrapyard | Entered Materials 77 | -10/Materials | Central database locked down 130 | -10/Materials | Discovered new exit (range 6) 305 | -10/Materials | Build established: Mutant 305 | -10/Materials | Discovered new exit (range 4) 310 | -10/Materials | Entered Subcaves 311 | -10/Subcaves | Approached by a straggling Scientist 468 | -10/Subcaves | Shifting Twisted Machinery released Flamer 492 | -10/Subcaves | Shifting Twisted Machinery released Shrapnel Trap 579 | -10/Subcaves | Scientist uncovered a shortcut to Scraptown 607 | -10/Subcaves | Learned location of Zion (-6) 616 | -10/Subcaves | Learned Materials garrison access intel 691 | -10/Subcaves | Ambushed by swarm of Subdwellers 693 | -10/Subcaves | Ambushed by Subdwellers from Twisted Machinery 693 | -10/Subcaves | Ambushed by Subdwellers from Twisted Machinery 697 | -10/Subcaves | Ambushed by Subdweller buried in earth 715 | -10/Subcaves | Core integrity fell below 50% 722 | -10/Subcaves | Entered Scraptown 745 | -9/Scraptown | Lost 4 parts (1p1n2w) 895 | -9/Scraptown | Visited Shadow of the Wyrm 905 | -9/Scraptown | Heard Great Nut preacher, LISTEN AND RECITE! 924 | -9/Scraptown | Visited Cyclists 935 | -9/Scraptown | Visited Spacefarers 1021 | -9/Scraptown | Scanned Subdweller tech in exchange for log data 1026 | -9/Scraptown | Learned Factory terminal intel 1108 | -9/Scraptown | Visited UFD Registry 1108 | -9/Scraptown | Registered with UFD as "Roughspawn" 1148 | -9/Scraptown | Visited Junk Repository 1207 | -9/Scraptown | Visited DA-N13 Charitable Foundation 1213 | -9/Scraptown | Found DCF Scrap (29 items) 1304 | -9/Scraptown | Visited Curators Association 1410 | -9/Scraptown | Delivered Scrap Shield to a Scientist 1470 | -9/Scraptown | Visited LU-1G1's Boring Crew 1504 | -9/Scraptown | Visited Research Penetration Think Tank 1556 | -9/Scraptown | Visited Science Testing Area 1578 | -9/Scraptown | Visited Abandonware Association 1602 | -9/Scraptown | Learned abandonware demo "REVENGE.EXE" 1602 | -9/Scraptown | Learned abandonware demo "POISON.EXE" 1705 | -9/Scraptown | Visited Analyses Database 1763 | -9/Scraptown | Visited Modified Component R&D 1953 | -9/Scraptown | Visited Scrap Suit Storage 1965 | -9/Scraptown | Found Scrap Suit 2374 | -9/Scraptown | Met Optimus 2374 | -9/Scraptown | Accepted into 0bPrime 2499 | -9/Scraptown | Discovered new exit (range 5) 2509 | -9/Scraptown | Entered Factory 2509 | -6/Factory | Evolved 8 slots: Propulsion x2, Utility x4, Weapon x2 2510 | -6/Factory | Loaded intel: 25 terminal locations 2803 | -6/Factory | Build established: Scrapper 3008 | -6/Factory | Discovered new exit (range 13) 3026 | -6/Factory | Identified exit to Factory 3318 | -6/Factory | Discovered exit to Factory (range 2) 3890 | -6/Factory | Loaded intel: 8 recycling unit locations 3914 | -6/Factory | Garrison activated, responded to threat 4021 | -6/Factory | Entered another Factory area 4021 | -5/Factory | Evolved 2 slots: Utility x2 4668 | -5/Factory | Loaded intel: 8 recycling unit locations 4668 | -5/Factory | Learned location of Protoforge (-2) 5221 | -5/Factory | First assault squad dispatched 5578 | -5/Factory | Cargo convoy interrupted 6040 | -5/Factory | Lost 11 parts (1p4n3u3w) 6212 | -5/Factory | Released all parts (8) 6217 | -5/Factory | Core integrity fell below 50% 6232 | -5/Factory | Core integrity fell below 20% 6241 | -5/Factory | Lost 9 parts (1p1n1u6w) 6241 | -5/Factory | Discovered new exit (range 5) 6246 | -5/Factory | Entered another Factory area 6246 | -4/Factory | Evolved 2 slots: Power x1, Utility x1 6297 | -4/Factory | Discovered new exit (range 12) 6301 | -4/Factory | Identified exit to Upper Caves 6380 | -4/Factory | Entered Upper Caves 6382 | -4/Upper Caves | UFD Scientist delivered a prototype 6384 | -4/Upper Caves | Encountered a Warlord checkpoint 6421 | -4/Upper Caves | Found Prototype Protection 6504 | -4/Upper Caves | Build established: Mutant 6629 | -4/Upper Caves | Discovered new exit (range 3) 6630 | -4/Upper Caves | Identified exit to Upper Caves 6642 | -4/Upper Caves | Entered another Upper Caves area 6646 | -4/Upper Caves | Ambushed by wild Derelicts 6651 | -4/Upper Caves | Discovered new exit (range 7) 6658 | -4/Upper Caves | Identified exit to Research 6660 | -4/Upper Caves | Entered Research 6660 | -3/Research | Evolved 2 slots: Propulsion x2 6665 | -3/Research | Identified exit to DSF 6665 | -3/Research | Entered DSF 6683 | -3/DSF | Identified Enh. Scrap Shield 6732 | -3/DSF | Additional patrols routed to DSF 6741 | -3/DSF | Discovered new exit (range 15) 6746 | -3/DSF | Identified exit to Research 6746 | -3/DSF | Entered Research 6746 | -2/Research | Evolved 2 slots: Propulsion x2 6747 | -2/Research | Identified exit to Quarantine 6846 | -2/Research | Spotted B-90 Cyclops 6866 | -2/Research | Entered Quarantine 6883 | -2/Quarantine | Found Alien Reactor 6883 | -2/Quarantine | Identified Matter Drive 6928 | -2/Quarantine | Found Alien Artifact 6928 | -2/Quarantine | Identified Phase Redirector 6940 | -2/Quarantine | Found Alien Energy Cannon 6940 | -2/Quarantine | Identified Core Cannon 6961 | -2/Quarantine | Build established: Derelict-Mutant 6990 | -2/Quarantine | Spotted Fortress 7015 | -2/Quarantine | Discovered new exit (range 6) 7015 | -2/Quarantine | Discovered new exit (range 7) 7016 | -2/Quarantine | Identified exit to Protoforge 7017 | -2/Quarantine | Entered Protoforge 7030 | -2/Protoforge | Superfortress began startup sequence 7137 | -2/Protoforge | Spotted AP7-3 7137 | -2/Protoforge | Spotted Overlord 7138 | -2/Protoforge | Spotted AP7-3 7143 | -2/Protoforge | Spotted Hotshot 7143 | -2/Protoforge | Spotted Hotshot 7143 | -2/Protoforge | Spotted Hotshot 7167 | -2/Protoforge | Spotted EXE-6 7167 | -2/Protoforge | Spotted EXE-6 7179 | -2/Protoforge | UFD initiated attack on Protoforge (Readiness: Low) 7179 | -2/Protoforge | Loaded intel: 3 recycling unit locations 7183 | -2/Protoforge | Lost 5 parts (1p3u1w) 7209 | -2/Protoforge | Found Prototype Ballistic Gun 7209 | -2/Protoforge | Identified Cep. XC Strikerail 7212 | -2/Protoforge | Found Cep. XC Strikerail 7213 | -2/Protoforge | Found Prototype Processor 7213 | -2/Protoforge | Identified Exp. Core Analyzer 7215 | -2/Protoforge | Optimus greeted in Protoforge 7222 | -2/Protoforge | Found 0bPrime Scrap Suit 7230 | -2/Protoforge | Spotted Decapitator 7230 | -2/Protoforge | Spotted Decapitator 7231 | -2/Protoforge | Found Cep. XC Strikerail 7274 | -2/Protoforge | Lost 15 allies 7274 | -2/Protoforge | Found Prototype Processor 7274 | -2/Protoforge | Identified Exp. Armor Integrity Analyzer 7311 | -2/Protoforge | Met 7R-MNS 7318 | -2/Protoforge | Spotted EXE-6 7319 | -2/Protoforge | Spotted EXE-6 7324 | -2/Protoforge | Destroyed EXE-6 7347 | -2/Protoforge | Found Cep. XC Strikerail 7354 | -2/Protoforge | Lost 12 allies 7354 | -2/Protoforge | Found Cep. XC Strikerail 7364 | -2/Protoforge | Found Prototype Device 7364 | -2/Protoforge | Identified Exp. Kinecellerator 7381 | -2/Protoforge | Found Exp. Core Analyzer 7430 | -2/Protoforge | Spotted Striker 7437 | -2/Protoforge | Destroyed Striker 7442 | -2/Protoforge | Spotted Executioner 7461 | -2/Protoforge | Destroyed Executioner 7482 | -2/Protoforge | Destroyed 7 combat bots 7484 | -2/Protoforge | Lost 6 allies 7497 | -2/Protoforge | Spotted Executioner 7506 | -2/Protoforge | Spotted Executioner 7511 | -2/Protoforge | Build established: Scavenger-Gunner 7511 | -2/Protoforge | Destroyed Executioner 7514 | -2/Protoforge | Destroyed Executioner 7532 | -2/Protoforge | UFD reported confirmed Drillbomb installation 7538 | -2/Protoforge | Spotted Executioner 7550 | -2/Protoforge | Spotted Striker 7553 | -2/Protoforge | Spotted Striker 7561 | -2/Protoforge | UFD reported confirmed Drillbomb installation 7563 | -2/Protoforge | Destroyed Striker 7566 | -2/Protoforge | Destroyed Striker 7574 | -2/Protoforge | Spotted Striker 7576 | -2/Protoforge | Spotted Hotshot 7578 | -2/Protoforge | Spotted Striker 7585 | -2/Protoforge | Destroyed Hotshot 7588 | -2/Protoforge | Spotted Hotshot 7589 | -2/Protoforge | Destroyed Hotshot 7590 | -2/Protoforge | Spotted Hotshot 7592 | -2/Protoforge | Destroyed Hotshot 7595 | -2/Protoforge | Spotted Striker 7603 | -2/Protoforge | Forge Plexus network access discovered 7613 | -2/Protoforge | Destroyed 11 combat bots 7619 | -2/Protoforge | Spotted Executioner 7630 | -2/Protoforge | Destroyed Striker 7633 | -2/Protoforge | Destroyed Executioner 7683 | -2/Protoforge | Destroyed 8 combat bots 7690 | -2/Protoforge | Lost 6 allies 7695 | -2/Protoforge | Spotted Decapitator 7700 | -2/Protoforge | Spotted Decapitator 7700 | -2/Protoforge | Spotted Decapitator 7701 | -2/Protoforge | Spotted Decapitator 7701 | -2/Protoforge | Destroyed Decapitator 7706 | -2/Protoforge | Destroyed Decapitator 7706 | -2/Protoforge | Destroyed Decapitator 7710 | -2/Protoforge | Destroyed Decapitator 7743 | -2/Protoforge | Lost 7 allies 7820 | -2/Protoforge | Spotted Striker 7824 | -2/Protoforge | Spotted Executioner 7826 | -2/Protoforge | Destroyed Striker 7837 | -2/Protoforge | Spotted Immortal 7841 | -2/Protoforge | Spotted Immortal 7860 | -2/Protoforge | Destroyed Immortal 7864 | -2/Protoforge | Destroyed Immortal 7883 | -2/Protoforge | Destroyed Executioner 7901 | -2/Protoforge | Spotted Striker 7903 | -2/Protoforge | Destroyed Striker 7904 | -2/Protoforge | Spotted Striker 7909 | -2/Protoforge | Destroyed Striker 7912 | -2/Protoforge | Lost 17 allies 7930 | -2/Protoforge | Destroyed 8 combat bots 7992 | -2/Protoforge | Spotted Executioner 8041 | -2/Protoforge | UFD reported confirmed Drillbomb installation 8054 | -2/Protoforge | Spotted Decapitator 8055 | -2/Protoforge | Spotted Decapitator 8055 | -2/Protoforge | Spotted Decapitator 8058 | -2/Protoforge | Spotted Decapitator 8059 | -2/Protoforge | Spotted Decapitator 8062 | -2/Protoforge | Destroyed Decapitator 8072 | -2/Protoforge | Spotted Striker 8100 | -2/Protoforge | Found 0bPrime Scrap Suit 8105 | -2/Protoforge | Lost 11 allies 8133 | -2/Protoforge | Found Prototype Processor 8133 | -2/Protoforge | Identified Exp. Targeting Computer 8168 | -2/Protoforge | Spotted Decapitator 8231 | -2/Protoforge | Spotted Executioner 8233 | -2/Protoforge | Destroyed 9 combat bots 8235 | -2/Protoforge | Spotted Executioner 8330 | -2/Protoforge | Spotted Executioner 8358 | -2/Protoforge | Lost 3 allies 8387 | -2/Protoforge | Spotted Executioner 8389 | -2/Protoforge | Lost 4 parts (2n2w) 8426 | -2/Protoforge | Lost 3 parts (1n2w) 8477 | -2/Protoforge | Spotted Striker 8483 | -2/Protoforge | Spotted Striker 8486 | -2/Protoforge | Destroyed Striker 8490 | -2/Protoforge | Destroyed Striker 8497 | -2/Protoforge | Spotted Hotshot 8498 | -2/Protoforge | Spotted Hotshot 8501 | -2/Protoforge | Spotted Hotshot 8503 | -2/Protoforge | Spotted Hotshot 8548 | -2/Protoforge | Lost 5 allies 8600 | -2/Protoforge | Spotted Executioner 8647 | -2/Protoforge | Lost 6 allies 8679 | -2/Protoforge | Spotted Striker 8681 | -2/Protoforge | Destroyed Striker 8684 | -2/Protoforge | Spotted Striker 8698 | -2/Protoforge | Destroyed Executioner 8718 | -2/Protoforge | Spotted Executioner 8729 | -2/Protoforge | Lost 4 allies 8729 | -2/Protoforge | Destroyed Executioner 8826 | -2/Protoforge | Spotted Executioner 8826 | -2/Protoforge | Spotted Striker 8827 | -2/Protoforge | Spotted Executioner 8827 | -2/Protoforge | Spotted Executioner 8829 | -2/Protoforge | Spotted Executioner 8837 | -2/Protoforge | Destroyed Executioner 8844 | -2/Protoforge | Found 0bPrime Scrap Suit 8850 | -2/Protoforge | Destroyed Striker 8895 | -2/Protoforge | Lost 13 allies 8897 | -2/Protoforge | Lost 3 parts (1p2n) 8994 | -2/Protoforge | Spotted Hotshot 8994 | -2/Protoforge | Spotted Hotshot 8996 | -2/Protoforge | Lost 4 allies 8996 | -2/Protoforge | Spotted Hotshot 9002 | -2/Protoforge | Destroyed Hotshot 9005 | -2/Protoforge | Destroyed Hotshot 9012 | -2/Protoforge | Destroyed Hotshot 9029 | -2/Protoforge | Spotted Executioner 9036 | -2/Protoforge | Spotted Executioner 9047 | -2/Protoforge | Destroyed 10 combat bots 9092 | -2/Protoforge | Found Prototype Device 9092 | -2/Protoforge | Identified Adv. Kinecellerator 9095 | -2/Protoforge | Lost 9 allies 9102 | -2/Protoforge | Lost 4 parts (1p2n1u) 9115 | -2/Protoforge | Spotted Hotshot 9116 | -2/Protoforge | Spotted Hotshot 9116 | -2/Protoforge | Spotted Hotshot 9117 | -2/Protoforge | Destroyed Hotshot 9124 | -2/Protoforge | Destroyed Hotshot 9129 | -2/Protoforge | Spotted Hotshot 9129 | -2/Protoforge | Spotted Hotshot 9130 | -2/Protoforge | Spotted SKR-2 9130 | -2/Protoforge | Spotted Hotshot 9132 | -2/Protoforge | Spotted Hotshot 9141 | -2/Protoforge | Destroyed Hotshot 9145 | -2/Protoforge | Destroyed SKR-2 9154 | -2/Protoforge | Spotted Striker 9155 | -2/Protoforge | Destroyed Hotshot 9159 | -2/Protoforge | Spotted Striker 9166 | -2/Protoforge | Destroyed Striker 9187 | -2/Protoforge | Spotted Executioner 9192 | -2/Protoforge | Destroyed Executioner 9196 | -2/Protoforge | Lost 8 allies 9218 | -2/Protoforge | P-80 Master assimilated allied L0-A8K(E) 9233 | -2/Protoforge | Spotted Immortal 9235 | -2/Protoforge | P-80 Master assimilated allied ZR-HZ0(E) 9236 | -2/Protoforge | Spotted Immortal 9239 | -2/Protoforge | Spotted Executioner 9241 | -2/Protoforge | Spotted Immortal 9278 | -2/Protoforge | Destroyed Immortal 9281 | -2/Protoforge | Spotted Executioner 9288 | -2/Protoforge | Core integrity fell below 50% 9291 | -2/Protoforge | Destroyed Immortal 9298 | -2/Protoforge | Destroyed Executioner 9303 | -2/Protoforge | Spotted Executioner 9305 | -2/Protoforge | Destroyed Executioner 9326 | -2/Protoforge | Destroyed 7 combat bots 9345 | -2/Protoforge | Lost 3 parts (3n) 9345 | -2/Protoforge | Lost 19 allies 9360 | -2/Protoforge | Spotted Executioner 9402 | -2/Protoforge | Spotted Striker 9427 | -2/Protoforge | Spotted Executioner 9442 | -2/Protoforge | Destroyed Executioner 9447 | -2/Protoforge | Spotted Executioner 9465 | -2/Protoforge | Spotted Executioner 9472 | -2/Protoforge | Destroyed Executioner 9476 | -2/Protoforge | Lost 18 allies 9479 | -2/Protoforge | Destroyed Executioner 9487 | -2/Protoforge | Spotted Striker 9491 | -2/Protoforge | Destroyed Striker 9543 | -2/Protoforge | Destroyed 11 combat bots 9543 | -2/Protoforge | Found 0bPrime Scrap Suit 9548 | -2/Protoforge | Lost 7 allies 9563 | -2/Protoforge | Spotted Executioner 9579 | -2/Protoforge | Spotted Striker 9601 | -2/Protoforge | Spotted Striker 9601 | -2/Protoforge | Spotted Striker 9627 | -2/Protoforge | Spotted Striker 9632 | -2/Protoforge | Spotted Executioner 9634 | -2/Protoforge | Spotted Executioner 9635 | -2/Protoforge | Destroyed Striker 9635 | -2/Protoforge | Spotted Striker 9638 | -2/Protoforge | Destroyed Executioner 9649 | -2/Protoforge | Destroyed Striker 9685 | -2/Protoforge | Spotted Striker 9691 | -2/Protoforge | Lost 11 allies 9694 | -2/Protoforge | Destroyed 11 combat bots 9698 | -2/Protoforge | Spotted Striker 9700 | -2/Protoforge | Lost 3 parts (2n1u) 9710 | -2/Protoforge | Core integrity fell below 20% 9710 | -2/Protoforge | Destroyed Striker 9717 | -2/Protoforge | Destroyed Striker 9755 | -2/Protoforge | Spotted Executioner 9770 | -2/Protoforge | Destroyed Executioner 9791 | -2/Protoforge | Destroyed 8 combat bots 9806 | -2/Protoforge | Lost 6 parts (4n2w) 9834 | -2/Protoforge | Spotted Executioner 9839 | -2/Protoforge | Destroyed Executioner 9846 | -2/Protoforge | Lost 16 allies 9877 | -2/Protoforge | Spotted Striker 9881 | -2/Protoforge | Spotted Striker 9892 | -2/Protoforge | Destroyed Striker 9922 | -2/Protoforge | Lost 5 allies 9941 | -2/Protoforge | UFD reported confirmed Drillbomb installation 10074 | -2/Protoforge | Spotted Striker 10076 | -2/Protoforge | Spotted Striker 10079 | -2/Protoforge | Spotted Striker 10083 | -2/Protoforge | Build established: Scavenger-Scrapper 10096 | -2/Protoforge | Spotted Hotshot 10097 | -2/Protoforge | Spotted Hotshot 10097 | -2/Protoforge | Spotted Hotshot 10122 | -2/Protoforge | Destroyed 02F20-K 10165 | -2/Protoforge | Lost 11 allies 10198 | -2/Protoforge | Spotted Executioner 10209 | -2/Protoforge | Destroyed 7 combat bots 10214 | -2/Protoforge | Spotted Immortal 10215 | -2/Protoforge | Spotted Striker 10216 | -2/Protoforge | Destroyed by Executioner with Helical Railgun Last Messages --------------- 10211_ N-04 Retriever destroyed. 10211_ Slug penetrates M-36 Artificer. 10211_ M-36 Artificer destroyed. 10211_ N-04 Retriever inserts Unknown Device into Forge Plexus. 10211_ N-04 Retriever collects Unknown Device. 10211_ N-04 Retriever collects Mak. Thermal Plating. 10212_ N-04 Retriever collects Prototype Piercing Weapon. 10213_ Slug penetrates R9-V8P(E). 10213_ R9-V8P(E) destroyed. 10215_ Slug penetrates N-04 Retriever. 10215_ N-04 Retriever suffers critical hit (Destroy). 10215_ Destroyed Lgt. Deuterium Engine. 10215_ Slug penetrates EO-TSB(E). 10216_ System corrupted: Component data lost. 10216_ Slug penetrates 1Z-YI0(j). [Achievement: Rambo] Map ----- +----------------------------------------------------+ | ???????????????????????????????# """ """" | | ???????????????????????????????# "" | | ???????????????????????????????# " "" | | ???????????????????????????????# "" "" """" | | ???????????????????????????????# " "" | | ???????????????????????????????# " "" " | | ???????????????????????????????# " " "" """ | | ???????????????????????????????# "" | | ???????????????????????????????# "" "" | | ???????????????????????????????# """"" " | | ???????????????????????????????# " | | ???????????????????????????????# " " "" | | ???????????????????????????????# """"" "" | | ?????????#############?????????# " "" | | #????????#######;#####?????????# """ | | #????????## # #????????# """" | | #?###### ## "" #???????# | | #######;;;; " %= #######?# "" % | | # ## """" "" % ## ### " | | # """ = # | | " != ! [ ![[ ## ""%%" % % " | | # =! !=*[ !!!==*!==; ! # # "" "" " " | | !/=*!=!%!=*=!!!!*![[=*][# # " %"%% % %%/ " | | /!=!!=[%=[**[%=!!!!*!![ # % "= !% "" | | %!!!==!=[=%%==[%%][!!=! # % "" / "" | | [%=%%!%%!!%%j*!%==%%%%%&%@%E%% %" "" | | %%!!%%[%%%%%%%[%%%n&%%%E&%n %s% % %%"" | | &[%*lK!%%=%%%%E%%%%%%A&%%%ns %%E%%% %% "" | | [!%*!!%&%[!=!=%[%%&%%&%&/ ## s %%A% % % % "" | | *[=*!%*%&[!!%=%%&[[!!=%![! #!#%% %"% % %"" | | =![!%!=%!!%==*%%%!=%!! *####=# #%% %""% "% "" | | !![!;!%%==%|!*%%=% ! &=# # #[ %%%%% % * % "" | | # !; *!%!*%!%[%! # #[!%%%%%%% %%% % " | | ##### % %; & %%% =% " ## #[![ % %%==% % " | | #??##" % %; ;%[*% " ## #!%%[ %%%%%%% % " | | ???##"";;[;;;;% ;*%!= # ## #%=!!%" %%%% | | ??##" %% ;%% ;*!;=;"# ## ###!%%=%%"%%= % % & | | ??# " * % %;![[!" " ####?#!=%! %% %%%% | | ??### ![[%*% %;![ !%" ##??#=%/% % % %% % | | ???#" !=%==% %;=! !/" #### !="" % | | ???#" =![/% ;!! *%" ## # *%"" % "" ! % % | | ???## =*[!% ;! !*%=! # # ! % " %" %% % % | | ???#" =%[% %;!!!!*!= ! # # " !% % | | ???#" !%!!%%]/ !==!%=! # # % % % % = | | ##### =![=%[% [=[%=%! / # %% "% % % %! | | #""#####""""%*%%[! "!=!**!!"""# % % % %% | | ## #"#""["%!%[ " !% %== "#% "%%% % | | ## ! % %%"""" 55" % %%#%%% % | | ## % % %"% " "%%% %%%%% ! % | | #" ! % """% " %% %"% % % % % | +----------------------------------------------------+ Best States ------------- Heat Dissipation 102 Coolant Potential 80 Energy Generation 53 Energy Capacity 600 Matter Stores 300 Matter Capacity 300 Sight Range 23 Robot Scan Range 16 Terrain Scan Range 20 Terrain Scan Density 210 Armor Coverage 800 Resistance: KI 25 Propulsion Shielding 66 Weapon Shielding 90 Phase Shifting 15 Evasion (%) 74 Target Analysis 12 Core Analysis 12 Armor Integrity Analysis 50 Recoil Reduction 8 Kinecelleration 66 Offensive Hacking 12 Defensive Hacking 10 Item Schematics ----------------- None Robot Schematics ------------------ None Fabricated ------------ Nothing Repaired ---------- Nothing Studied --------- Impulse Thruster Array | -2/Research | Hacked Lgt. Quantum Reactor | -2/Quarantine | Hacked Alien Tech Used ----------------- Matter Drive Phase Redirector Core Cannon Achievements -------------- Collateral Damage Overclocked Rambo Sniper Challenges ------------ None Game ------ Seed ZioniteBoltMinigun Manual? 0 Play Time 03:27:06 Cumulative 160.3 hours Start 2026.08.03 @ 16:08:47 End 2026.08.03 @ 19:59:43 Sessions 1 Manual Loads 0 Difficulty Rogue Special Mode None Game No. 168 Rogue 114 Adventurer 54 Explorer 0 Win Type - Total 7 Types 3/0/1/1/0/0/0/1/0/1 Lore% 63 Gallery% 57 Achievement% 53 Wizard Run 0 Options --------- Layout 1 ASCII 0 Keyboard 0 Movement Mouse Keybinds 1 Fullscreen 2 Font 32/Tamsyn Map View 50x35 Zoom Use 0% Tactical HUD 1 Map Filters NONE Filters NONE Steam 1 RUN: 18540503-e9dd-4563-b466-734734ef7794